[Event "French-ch Youth U12 2022"]
[Site "Agen"]
[Date "2022.04.21"]
[Round "6.6"]
[White "Castagnerol, Cerise"]
[Black "Nogues, Norah"]
[Result "0-1"]
[ECO "D30"]
[WhiteElo "1312"]
[BlackElo "1096"]
[Annotator "NA RC COMBH"]
[PlyCount "52"]
[EventDate "2022.04.17"]
[EventType "swiss"]
[EventCountry "FRA"]
[SourceTitle "playchess.com"]
[Source "ChessBase"]
[SourceQuality "1"]
[TimeControl "5400+30"]

1. d4 {[%emt 0:00:06]} d5 {[%emt 0:00:09]} 2. c4 {[%emt 0:00:14]} e6 {[%emt 0:00:26]} 3. Nf3 {[%emt 0:00:10]} c6 {[%emt 0:00:13]} 4. g3 {[%emt 0:00:06]} f5 {[%emt 0:00:24]} 5. Bg2 {[%emt 0:00:51]} Nf6 {[%emt 0:00:23]} 6. O-O {[%emt 0:00:13]} Bd6 {[%emt 0:00:20]} 7. Nc3 {[%emt 0:03:18]} b6 {[%emt 0:00:37]} 8. cxd5 {[%emt 0:02:51]} exd5 {[%emt 0:00:33]} 9. Bd2 {[%emt 0:04:19]} O-O {[%emt 0:00:51]} 10. Qc1 {[%emt 0:00:40]} Bb7 {[%emt 0:02:42]} 11. Bf4 {[%emt 0:02:16]} Ne4 {[%emt 0:02:59]} 12. Bxd6 {[%emt 0:02:06]} Qxd6 {[%emt 0:00:18]} 13. Ne5 {[%emt 0:01:12]} Nd7 {[%emt 0:01:45]} 14. Nxe4 {[%emt 0:01:27]} fxe4 {[%emt 0:00:39]} 15. Ng4 {[%emt 0:06:53]} c5 {[%emt 0:01:26]} 16. Rd1 {[%emt 0:02:25]} Rae8 {[%emt 0:03:52]} 17. Qd2 {[%emt 0:06:13]} Nf6 {[%emt 0:07:24]} 18. Nxf6+ {[%emt 0:04:53]} Qxf6 {[%emt 0:00:32]} 19. e3 {[%emt 0:03:35]} c4 {[%emt 0:04:24]} 20. Rac1 {[%emt 0:10:22]} Rc8 {[%emt 0:02:48]} 21. Rc2 {[%emt 0:00:27]} b5 {[%emt 0:00:43]} 22. Rdc1 {[%emt 0:09:06]} Rc7 {[%emt 0:02:04]} 23. Bh3 {[%emt 0:05:11]} Qf3 {[%emt 0:05:56]} 24. b3 {[%emt 0:01:33]} Rfc8 {[%emt 0:02:46]} 25. Bxc8 {[%emt 0:02:18]} Bxc8 {[%emt 0:00:20]} 26. Qa5 {[%emt 0:01:59]} Bh3 0-1

[Event "French-ch Youth U12 2022"]
[Site "Agen"]
[Date "2022.04.21"]
[Round "6.7"]
[White "Verdier, Anais"]
[Black "Neel, Laura"]
[Result "0-1"]
[ECO "E91"]
[WhiteElo "1265"]
[BlackElo "1725"]
[Annotator "NA RC COMBH"]
[PlyCount "66"]
[EventDate "2022.04.17"]
[EventType "swiss"]
[EventCountry "FRA"]
[SourceTitle "playchess.com"]
[Source "ChessBase"]
[SourceQuality "1"]
[TimeControl "5400+30"]

1. d4 {[%emt 0:04:37]} Nf6 {[%emt 0:00:06]} 2. Nf3 {[%emt 0:00:21]} g6 {[%emt 0:00:14]} 3. c4 {[%emt 0:00:47]} Bg7 {[%emt 0:00:04]} 4. Nc3 {[%emt 0:00:31]} O-O {[%emt 0:00:05]} 5. e4 {[%emt 0:00:44]} d6 {[%emt 0:00:04]} 6. Be2 {[%emt 0:00:45]} Nbd7 {[%emt 0:02:21]} 7. O-O {[%emt 0:02:05]} e5 {[%emt 0:00:05]} 8. d5 {[%emt 0:01:44]} Nc5 {[%emt 0:00:29]} 9. Qc2 a5 {[%emt 0:00:04]} 10. Bg5 {[%emt 0:08:00]} h6 {[%emt 0:00:34]} 11. Bh4 g5 {[%emt 0:05:03]} 12. Bg3 {[%emt 0:04:52]} Nh5 {[%emt 0:00:59]} 13. Nd2 {[%emt 0:11:39]} Nf4 {[%emt 0:01:11]} 14. h3 f5 15. f3 {[%emt 0:17:26]} Qe8 {[%emt 0:13:21]} 16. Bxf4 {[%emt 0:15:42]} gxf4 {[%emt 0:00:52]} 17. Nb5 {[%emt 0:05:24]} Na6 {[%emt 0:04:49]} 18. a3 {[%emt 0:03:55]} Qg6 {[%emt 0:04:22]} 19. Bd3 {[%emt 0:05:42]} fxe4 {[%emt 0:29:39]} 20. Bxe4 {[%emt 0:00:47]} Bf5 {[%emt 0:00:34]} 21. Bxf5 {[%emt 0:01:13]} Rxf5 {[%emt 0:00:18]} 22. Rac1 {[%emt 0:02:22]} Qh5 {[%emt 0:08:12]} 23. Ne4 {[%emt 0:02:08]} Kh8 {[%emt 0:05:50]} 24. c5 {[%emt 0:03:52]} dxc5 {[%emt 0:03:43]} 25. Nxc5 {[%emt 0:01:27]} Nxc5 {[%emt 0:00:05]} 26. Qxc5 {[%emt 0:00:11]} Rg8 {[%emt 0:03:09]} 27. Kh1 {[%emt 0:01:39]} Bf6 {[%emt 0:03:30]} 28. Rg1 {[%emt 0:01:32]} Qh4 {[%emt 0:03:11]} 29. Qc2 {[%emt 0:01:04]} Rh5 {[%emt 0:01:16]} 30. Nxc7 {[%emt 0:01:43]} Rg3 {[%emt 0:02:01]} 31. Rgd1 {[%emt 0:01:51]} Rxh3+ {[%emt 0:00:44]} 32. gxh3 {[%emt 0:00:39]} Qxh3+ {[%emt 0:00:08]} 33. Qh2 {[%emt 0:01:03]} Qxh2# {[%emt 0:00:12]} 0-1

[Event "French-ch Youth U12 2022"]
[Site "Agen"]
[Date "2022.04.21"]
[Round "6.8"]
[White "Allard Nedellec, Anna"]
[Black "Maret, Anna"]
[Result "1-0"]
[ECO "B40"]
[WhiteElo "1514"]
[BlackElo "1328"]
[Annotator "NA RC COMBH"]
[PlyCount "67"]
[EventDate "2022.04.17"]
[EventType "swiss"]
[EventCountry "FRA"]
[SourceTitle "playchess.com"]
[Source "ChessBase"]
[SourceQuality "1"]
[TimeControl "5400+30"]

1. e4 {[%emt 0:00:03]} c5 {[%emt 0:00:05]} 2. Nf3 {[%emt 0:00:07]} e6 {[%emt 0:00:08]} 3. c3 {[%emt 0:00:07]} d5 {[%emt 0:00:08]} 4. exd5 {[%emt 0:00:12]} exd5 {[%emt 0:00:05]} 5. d4 {[%emt 0:00:17]} a6 {[%emt 0:00:10]} 6. Be2 {[%emt 0:02:15]} Nc6 {[%emt 0:03:38]} 7. O-O {[%emt 0:01:45]} c4 {[%emt 0:04:05]} 8. Re1 {[%emt 0:02:09]} Be7 {[%emt 0:03:34]} 9. Be3 {[%emt 0:06:10]} Nf6 {[%emt 0:04:28]} 10. Ne5 {[%emt 0:01:35]} O-O {[%emt 0:05:50]} 11. f4 {[%emt 0:07:32]} Ne4 {[%emt 0:11:25]} 12. Nd2 {[%emt 0:04:12]} Nxd2 {[%emt 0:04:51]} 13. Qxd2 {[%emt 0:01:00]} f6 {[%emt 0:03:05]} 14. Nf3 {[%emt 0:03:04]} Bf5 {[%emt 0:01:29]} 15. Rf1 {[%emt 0:08:55]} Re8 {[%emt 0:09:00]} 16. Nh4 {[%emt 0:07:02]} Be4 {[%emt 0:06:30]} 17. f5 {[%emt 0:01:30]} Bd6 {[%emt 0:04:21]} 18. Bf3 {[%emt 0:10:00]} Bxf3 {[%emt 0:02:58]} 19. Rxf3 {[%emt 0:01:19]} Kf7 {[%emt 0:09:02]} 20. Bf4 {[%emt 0:09:21]} g5 {[%emt 0:08:29]} 21. fxg6+ {[%emt 0:00:51]} hxg6 {[%emt 0:01:24]} 22. Bxd6 {[%emt 0:03:41]} Qxd6 {[%emt 0:00:25]} 23. Qg5 {[%emt 0:02:17]} f5 {[%emt 0:02:33]} 24. g4 {[%emt 0:00:50]} Re2 {[%emt 0:03:23]} 25. Rf4 {[%emt 0:07:34]} Rf8 {[%emt 0:02:52]} 26. gxf5 {[%emt 0:04:07]} gxf5 {[%emt 0:00:31]} 27. Nxf5 {[%emt 0:01:30]} Qd8 {[%emt 0:07:56]} 28. Qxd8 {[%emt 0:03:16]} Rxd8 {[%emt 0:00:41]} 29. Ng3+ {[%emt 0:00:34]} Kg6 {[%emt 0:00:13]} 30. Nxe2 {[%emt 0:00:11]} Re8 {[%emt 0:00:05]} 31. Ng3 {[%emt 0:00:47]} b5 {[%emt 0:00:33]} 32. Raf1 {[%emt 0:00:20]} Kg7 {[%emt 0:00:42]} 33. Rf6 {[%emt 0:00:58]} Nb8 {[%emt 0:00:33]} 34. Nh5+ 1-0

[Event "French-ch Youth U12 2022"]
[Site "Agen"]
[Date "2022.04.22"]
[Round "7.1"]
[White "Bonelli Maestracci, Pierre Joseph"]
[Black "Contie, Lilio"]
[Result "1-0"]
[ECO "B01"]
[WhiteElo "1629"]
[BlackElo "1606"]
[Annotator "NA RC COMBH"]
[PlyCount "159"]
[EventDate "2022.04.17"]
[EventType "swiss"]
[EventCountry "FRA"]
[SourceTitle "playchess.com"]
[Source "ChessBase"]
[SourceQuality "1"]
[TimeControl "5400+30"]

1. e4 {[%emt 0:00:04]} d5 {[%emt 0:00:14]} 2. exd5 {[%emt 0:00:19]} Qxd5 {[%emt 0:00:15]} 3. Nf3 {[%emt 0:00:18]} Bg4 {[%emt 0:00:35]} 4. Be2 {[%emt 0:00:41]} Nc6 {[%emt 0:00:44]} 5. c4 {[%emt 0:01:29]} Qa5 {[%emt 0:06:29]} 6. O-O {[%emt 0:00:51]} O-O-O {[%emt 0:02:01]} 7. Nc3 {[%emt 0:04:58]} e6 {[%emt 0:02:24]} 8. b3 {[%emt 0:06:48]} Nf6 {[%emt 0:03:27]} 9. Bb2 {[%emt 0:01:37]} Qf5 {[%emt 0:02:36]} 10. Nb5 {[%emt 0:08:34]} a6 {[%emt 0:06:23]} 11. Nbd4 {[%emt 0:02:03]} Nxd4 {[%emt 0:14:33]} 12. Nxd4 {[%emt 0:01:40]} Bxe2 {[%emt 0:02:14]} 13. Qxe2 {[%emt 0:00:24]} Qf4 {[%emt 0:02:06]} 14. Nf3 {[%emt 0:03:43]} h5 {[%emt 0:03:16]} 15. d4 {[%emt 0:04:04]} Be7 {[%emt 0:05:41]} 16. c5 {[%emt 0:10:16]} Rdg8 {[%emt 0:06:29]} 17. c6 {[%emt 0:04:02]} g5 {[%emt 0:01:23]} 18. cxb7+ {[%emt 0:00:22]} Kxb7 {[%emt 0:00:36]} 19. Ne5 {[%emt 0:01:23]} Ng4 {[%emt 0:05:38]} 20. g3 {[%emt 0:05:29]} Qf5 {[%emt 0:01:28]} 21. Qc4 {[%emt 0:03:11]} Nxe5 {[%emt 0:03:20]} 22. dxe5 {[%emt 0:00:50]} Qf3 {[%emt 0:00:51]} 23. Rac1 {[%emt 0:02:17]} c6 {[%emt 0:01:40]} 24. Rc3 {[%emt 0:05:19]} Qd5 {[%emt 0:00:55]} 25. Rfc1 {[%emt 0:00:40]} Rc8 {[%emt 0:03:29]} 26. Qe2 {[%emt 0:03:08]} h4 {[%emt 0:03:06]} 27. Rd1 {[%emt 0:01:42]} Qb5 {[%emt 0:00:48]} 28. Qxb5+ {[%emt 0:01:34]} axb5 {[%emt 0:00:27]} 29. Rf3 {[%emt 0:01:46]} hxg3 {[%emt 0:02:58]} 30. fxg3 {[%emt 0:00:21]} Bc5+ {[%emt 0:01:17]} 31. Kg2 {[%emt 0:00:16]} Rc7 {[%emt 0:02:11]} 32. a3 {[%emt 0:01:31]} Kc8 {[%emt 0:01:07]} 33. b4 {[%emt 0:01:10]} Bf8 {[%emt 0:01:16]} 34. Rdf1 {[%emt 0:03:09]} Rh7 {[%emt 0:00:38]} 35. Bc1 {[%emt 0:00:25]} Bh6 {[%emt 0:01:42]} 36. Rf6 {[%emt 0:00:46]} Rd7 {[%emt 0:00:26]} 37. h4 {[%emt 0:02:24]} Bg7 {[%emt 0:01:57]} 38. Rxf7 {[%emt 0:01:47]} gxh4 {[%emt 0:00:59]} 39. gxh4 {[%emt 0:01:18]} Bxe5 {[%emt 0:01:24]} 40. Rxh7 {[%emt 0:00:11]} Rxh7 {[%emt 0:00:38]} 41. Bg5 {[%emt 0:00:58]} Bb2 {[%emt 0:01:19]} 42. Rb1 {[%emt 0:01:07]} Bxa3 {[%emt 0:04:54]} 43. Rb3 {[%emt 0:00:10]} Ra7 {[%emt 0:00:09]} 44. Kf3 {[%emt 0:01:38]} Kd7 {[%emt 0:00:52]} 45. h5 {[%emt 0:00:41]} Ke8 {[%emt 0:00:12]} 46. h6 {[%emt 0:00:18]} Kf7 {[%emt 0:00:25]} 47. Ke4 {[%emt 0:00:37]} Kg6 {[%emt 0:00:47]} 48. Bf4 {[%emt 0:01:41]} Ra4 {[%emt 0:02:31]} 49. Bd6 {[%emt 0:01:22]} Kxh6 {[%emt 0:00:51]} 50. Ke5 {[%emt 0:00:15]} Bc1 {[%emt 0:01:13]} 51. Kxe6 {[%emt 0:00:20]} Ra6 {[%emt 0:00:44]} 52. Bc5 {[%emt 0:00:21]} Bg5 {[%emt 0:00:34]} 53. Kd7 {[%emt 0:00:26]} Bd2 {[%emt 0:01:23]} 54. Kc7 {[%emt 0:00:32]} Ra8 {[%emt 0:00:24]} 55. Kb7 {[%emt 0:00:13]} Re8 {[%emt 0:00:15]} 56. Kxc6 {[%emt 0:00:12]} Rb8 {[%emt 0:00:17]} 57. Bd6 {[%emt 0:00:27]} Rd8 {[%emt 0:00:53]} 58. Rd3 {[%emt 0:00:58]} Bg5 {[%emt 0:00:06]} 59. Kxb5 {[%emt 0:00:35]} Kg6 {[%emt 0:00:18]} 60. Kc6 {[%emt 0:00:20]} Bh4 {[%emt 0:00:58]} 61. Rd2 {[%emt 0:00:47]} Be1 {[%emt 0:00:31]} 62. Rg2+ {[%emt 0:00:27]} Kf5 {[%emt 0:00:31]} 63. b5 {[%emt 0:00:14]} Ba5 {[%emt 0:00:23]} 64. Ra2 {[%emt 0:00:19]} Ke6 {[%emt 0:00:51]} 65. Rxa5 {[%emt 0:00:54]} Rxd6+ {[%emt 0:00:07]} 66. Kb7 {[%emt 0:00:12]} Rd7+ {[%emt 0:00:27]} 67. Ka6 {[%emt 0:00:10]} Kd6 {[%emt 0:01:34]} 68. b6 {[%emt 0:00:36]} Kc6 {[%emt 0:00:41]} 69. Ra2 {[%emt 0:00:17]} Rd3 {[%emt 0:00:30]} 70. Rc2+ {[%emt 0:01:41]} Kd7 {[%emt 0:00:14]} 71. Rc4 {[%emt 0:02:43]} Rd1 {[%emt 0:00:27]} 72. Ra4 {[%emt 0:02:18]} Kc8 {[%emt 0:00:49]} 73. Ka7 {[%emt 0:00:15]} Rb1 {[%emt 0:00:24]} 74. Ra6 {[%emt 0:00:27]} Rb4 {[%emt 0:00:18]} 75. Ra2 {[%emt 0:00:58]} Rb1 {[%emt 0:00:18]} 76. Rc2+ {[%emt 0:00:04]} Kd7 {[%emt 0:00:09]} 77. Rh2 {[%emt 0:01:32]} Kc6 {[%emt 0:00:52]} 78. Rh6+ {[%emt 0:00:08]} Kd7 {[%emt 0:00:23]} 79. b7 {[%emt 0:00:27]} Kc7 {[%emt 0:00:45]} 80. b8=Q+ {[%emt 0:00:18]} 1-0

[Event "French-ch Youth U12 2022"]
[Site "Agen"]
[Date "2022.04.22"]
[Round "7.2"]
[White "Khoury, Theo"]
[Black "Blanc, Leonard"]
[Result "1-0"]
[ECO "C45"]
[WhiteElo "1878"]
[BlackElo "1452"]
[Annotator "NA RC COMBH"]
[PlyCount "79"]
[EventDate "2022.04.17"]
[EventType "swiss"]
[EventCountry "FRA"]
[SourceTitle "playchess.com"]
[Source "ChessBase"]
[SourceQuality "1"]
[TimeControl "5400+30"]

1. e4 {[%emt 0:00:04]} e5 {[%emt 0:00:04]} 2. Nf3 {[%emt 0:00:09]} Nc6 {[%emt 0:00:08]} 3. d4 {[%emt 0:00:06]} exd4 {[%emt 0:00:12]} 4. Nxd4 {[%emt 0:00:09]} Nf6 {[%emt 0:00:11]} 5. Nxc6 {[%emt 0:00:08]} bxc6 {[%emt 0:00:10]} 6. e5 {[%emt 0:00:05]} Qe7 {[%emt 0:00:11]} 7. Qe2 {[%emt 0:00:05]} Nd5 {[%emt 0:00:20]} 8. h4 {[%emt 0:00:05]} a5 {[%emt 0:00:28]} 9. c4 {[%emt 0:00:07]} Nb6 {[%emt 0:00:16]} 10. h5 {[%emt 0:00:38]} h6 {[%emt 0:02:15]} 11. b3 {[%emt 0:03:16]} Ba6 {[%emt 0:02:30]} 12. Bb2 {[%emt 0:00:55]} O-O-O {[%emt 0:02:48]} 13. Qd2 {[%emt 0:03:35]} a4 {[%emt 0:12:45]} 14. Be2 {[%emt 0:05:56]} Bb7 {[%emt 0:04:07]} 15. O-O {[%emt 0:04:30]} Qe6 {[%emt 0:03:44]} 16. Qa5 {[%emt 0:09:22]} c5 {[%emt 0:08:20]} 17. f4 {[%emt 0:07:25]} f5 {[%emt 0:04:40]} 18. Nc3 {[%emt 0:03:11]} g5 {[%emt 0:05:05]} 19. hxg6 {[%emt 0:09:15]} Qxg6 {[%emt 0:00:22]} 20. Bf3 {[%emt 0:00:36]} Bxf3 {[%emt 0:02:56]} 21. Rxf3 {[%emt 0:00:10]} Rg8 {[%emt 0:03:24]} 22. Qa6+ {[%emt 0:02:10]} Kb8 {[%emt 0:00:49]} 23. Rf2 {[%emt 0:00:13]} Qc6 {[%emt 0:02:30]} 24. Nxa4 {[%emt 0:01:48]} Qb7 {[%emt 0:06:18]} 25. Qxb7+ {[%emt 0:01:21]} Kxb7 {[%emt 0:00:04]} 26. Nc3 {[%emt 0:01:22]} Bg7 {[%emt 0:01:34]} 27. a4 {[%emt 0:02:11]} d6 {[%emt 0:01:40]} 28. a5 {[%emt 0:00:53]} Na8 {[%emt 0:04:40]} 29. Nd5 {[%emt 0:02:04]} Rge8 {[%emt 0:06:06]} 30. Re2 {[%emt 0:05:33]} Re6 {[%emt 0:04:54]} 31. Ne3 {[%emt 0:03:23]} Rf8 {[%emt 0:01:03]} 32. Rae1 {[%emt 0:03:05]} Ka6 {[%emt 0:02:09]} 33. Bc3 {[%emt 0:00:30]} Rf7 {[%emt 0:00:44]} 34. Kf2 {[%emt 0:01:47]} dxe5 {[%emt 0:04:19]} 35. fxe5 {[%emt 0:00:17]} Bxe5 {[%emt 0:00:51]} 36. Nc2 {[%emt 0:01:05]} Bxc3 {[%emt 0:01:17]} 37. Rxe6+ {[%emt 0:00:13]} Ka7 {[%emt 0:00:24]} 38. Rd1 {[%emt 0:00:46]} Rf6 {[%emt 0:00:46]} 39. Rxf6 {[%emt 0:00:18]} Bxf6 {[%emt 0:00:04]} 40. Rd5 {[%emt 0:00:10]} 1-0

[Event "French-ch Youth U12 2022"]
[Site "Agen"]
[Date "2022.04.22"]
[Round "7.3"]
[White "Borne, Felix"]
[Black "Petrichenko, Maxim"]
[Result "1-0"]
[ECO "D35"]
[WhiteElo "1780"]
[BlackElo "1389"]
[Annotator "NA RC COMBH"]
[PlyCount "53"]
[EventDate "2022.04.17"]
[EventType "swiss"]
[EventCountry "FRA"]
[SourceTitle "playchess.com"]
[Source "ChessBase"]
[SourceQuality "1"]
[TimeControl "5400+30"]

1. d4 {[%emt 0:00:03]} d5 {[%emt 0:00:02]} 2. c4 {[%emt 0:00:08]} e6 {[%emt 0:00:12]} 3. Nc3 {[%emt 0:00:18]} Nf6 {[%emt 0:00:20]} 4. cxd5 {[%emt 0:00:24]} exd5 {[%emt 0:00:09]} 5. Bg5 {[%emt 0:00:12]} Be6 {[%emt 0:01:04]} 6. e3 {[%emt 0:00:39]} Be7 {[%emt 0:00:51]} 7. Bd3 {[%emt 0:00:34]} Nbd7 {[%emt 0:01:30]} 8. f4 {[%emt 0:00:51]} Nb6 {[%emt 0:02:55]} 9. Nf3 {[%emt 0:05:09]} O-O {[%emt 0:04:02]} 10. O-O {[%emt 0:03:05]} h6 {[%emt 0:05:15]} 11. Bh4 {[%emt 0:08:41]} Re8 {[%emt 0:07:10]} 12. Ne5 {[%emt 0:02:40]} c6 {[%emt 0:13:51]} 13. h3 {[%emt 0:07:42]} Bc8 {[%emt 0:09:43]} 14. g4 {[%emt 0:09:55]} Nfd7 {[%emt 0:02:38]} 15. Bg3 {[%emt 0:03:03]} Nxe5 {[%emt 0:01:57]} 16. fxe5 {[%emt 0:00:24]} Bh4 {[%emt 0:01:09]} 17. Qf3 {[%emt 0:03:05]} Be6 {[%emt 0:01:40]} 18. Rf2 {[%emt 0:04:06]} Bxg3 {[%emt 0:03:17]} 19. Qxg3 {[%emt 0:00:21]} Qd7 {[%emt 0:12:48]} 20. Raf1 {[%emt 0:01:10]} Rad8 {[%emt 0:05:36]} 21. Ne2 {[%emt 0:01:53]} Qe7 {[%emt 0:01:35]} 22. Nf4 {[%emt 0:02:09]} Bc8 {[%emt 0:01:16]} 23. Nh5 {[%emt 0:05:00]} Qg5 {[%emt 0:02:03]} 24. Rxf7 {[%emt 0:00:58]} Re7 {[%emt 0:00:27]} 25. Qf3 {[%emt 0:02:46]} Be6 {[%emt 0:02:02]} 26. Rf8+ {[%emt 0:00:14]} Rxf8 {[%emt 0:00:27]} 27. Qxf8# {[%emt 0:00:08]} 1-0

[Event "French-ch Youth U12 2022"]
[Site "Agen"]
[Date "2022.04.22"]
[Round "7.4"]
[White "Motoyama, Wesley Winsen"]
[Black "Pon Le Brun, Gregoire"]
[Result "1/2-1/2"]
[ECO "A45"]
[WhiteElo "1590"]
[BlackElo "1392"]
[Annotator "NA RC COMBH"]
[PlyCount "80"]
[EventDate "2022.04.17"]
[EventType "swiss"]
[EventCountry "FRA"]
[SourceTitle "playchess.com"]
[Source "ChessBase"]
[SourceQuality "1"]
[TimeControl "5400+30"]

1. d4 {[%emt 0:00:06]} Nf6 {[%emt 0:00:10]} 2. Nc3 {[%emt 0:00:17]} c5 {[%emt 0:00:13]} 3. d5 {[%emt 0:00:25]} d6 {[%emt 0:00:28]} 4. e4 {[%emt 0:00:58]} g6 {[%emt 0:01:33]} 5. Nf3 {[%emt 0:01:12]} Bg7 {[%emt 0:01:39]} 6. Bb5+ {[%emt 0:01:40]} Nbd7 {[%emt 0:07:15]} 7. a4 {[%emt 0:01:37]} a6 {[%emt 0:04:05]} 8. Be2 {[%emt 0:00:55]} O-O {[%emt 0:11:27]} 9. O-O {[%emt 0:01:43]} Ne8 {[%emt 0:14:36]} 10. Re1 {[%emt 0:09:38]} Ne5 {[%emt 0:02:39]} 11. Nxe5 {[%emt 0:08:26]} dxe5 {[%emt 0:12:59]} 12. a5 {[%emt 0:01:30]} Bd7 {[%emt 0:09:26]} 13. Be3 {[%emt 0:06:27]} Qc7 {[%emt 0:08:57]} 14. Qd2 {[%emt 0:08:25]} f5 {[%emt 0:05:19]} 15. f3 {[%emt 0:06:27]} Nd6 {[%emt 0:01:30]} 16. Bd3 {[%emt 0:09:00]} Rf7 {[%emt 0:05:36]} 17. exf5 {[%emt 0:11:46]} gxf5 {[%emt 0:07:14]} 18. Bh6 {[%emt 0:01:10]} Bf6 {[%emt 0:00:36]} 19. Be3 {[%emt 0:02:53]} Kh8 {[%emt 0:00:42]} 20. Kh1 {[%emt 0:02:28]} Rg8 {[%emt 0:00:28]} 21. Bf1 {[%emt 0:03:11]} Rfg7 {[%emt 0:00:52]} 22. Qf2 {[%emt 0:06:30]} e4 {[%emt 0:02:00]} 23. f4 {[%emt 0:03:36]} Nb5 {[%emt 0:00:43]} 24. Nxb5 {[%emt 0:01:56]} Bxb5 {[%emt 0:00:07]} 25. c4 {[%emt 0:00:42]} Be8 {[%emt 0:00:32]} 26. Bxc5 {[%emt 0:00:53]} Qc8 {[%emt 0:01:50]} 27. Bd4 {[%emt 0:00:36]} Bxd4 {[%emt 0:00:28]} 28. Qxd4 {[%emt 0:00:07]} Qc7 {[%emt 0:00:21]} 29. Qe3 {[%emt 0:02:11]} Rg4 {[%emt 0:00:30]} 30. g3 {[%emt 0:00:51]} R4g7 {[%emt 0:00:34]} 31. Be2 {[%emt 0:00:34]} Qd6 {[%emt 0:00:22]} 32. Kg2 {[%emt 0:00:47]} Qh6 {[%emt 0:00:15]} 33. Rh1 {[%emt 0:00:47]} Bh5 {[%emt 0:00:21]} 34. Kf2 {[%emt 0:00:29]} Bxe2 {[%emt 0:00:37]} 35. Qxe2 {[%emt 0:00:36]} Qf6 {[%emt 0:00:37]} 36. Qd2 {[%emt 0:03:01]} e5 {[%emt 0:00:56]} 37. Qc3 {[%emt 0:01:24]} e3+ {[%emt 0:00:18]} 38. Qxe3 {[%emt 0:03:41]} exf4 {[%emt 0:00:07]} 39. Qxf4 {[%emt 0:00:29]} Qxb2+ {[%emt 0:00:28]} 40. Kf3 {[%emt 0:00:13]} Qc3+ {[%emt 0:01:03]} 1/2-1/2

[Event "French-ch Youth U12 2022"]
[Site "Agen"]
[Date "2022.04.22"]
[Round "7.5"]
[White "Nogues, Norah"]
[Black "Alfano, Emilie"]
[Result "0-1"]
[ECO "D02"]
[WhiteElo "1096"]
[BlackElo "1635"]
[Annotator "NA RC COMBH"]
[PlyCount "72"]
[EventDate "2022.04.17"]
[EventType "swiss"]
[EventCountry "FRA"]
[SourceTitle "playchess.com"]
[Source "ChessBase"]
[SourceQuality "1"]
[TimeControl "5400+30"]

1. d4 {[%emt 0:00:04]} d5 {[%emt 0:00:06]} 2. Nf3 {[%emt 0:00:10]} Nf6 {[%emt 0:00:07]} 3. Bf4 {[%emt 0:00:14]} e6 {[%emt 0:00:37]} 4. e3 {[%emt 0:00:17]} Bd6 {[%emt 0:00:54]} 5. Bg3 {[%emt 0:00:47]} O-O {[%emt 0:01:07]} 6. Nbd2 {[%emt 0:01:02]} b6 {[%emt 0:00:43]} 7. Bd3 {[%emt 0:00:59]} c5 {[%emt 0:00:35]} 8. c3 {[%emt 0:02:42]} Bb7 {[%emt 0:01:18]} 9. O-O {[%emt 0:02:06]} Bxg3 {[%emt 0:01:52]} 10. hxg3 {[%emt 0:00:34]} Nbd7 {[%emt 0:01:05]} 11. Ne5 {[%emt 0:02:16]} Nxe5 {[%emt 0:04:10]} 12. dxe5 {[%emt 0:00:10]} Ne4 {[%emt 0:14:28]} 13. Qc2 {[%emt 0:04:54]} Nxd2 {[%emt 0:00:50]} 14. Qxd2 {[%emt 0:00:15]} Qg5 {[%emt 0:00:37]} 15. Rad1 {[%emt 0:02:26]} Qxe5 {[%emt 0:00:28]} 16. f4 {[%emt 0:01:37]} Qf6 {[%emt 0:00:53]} 17. g4 {[%emt 0:06:50]} e5 18. g3 d4 {[%emt 0:07:57]} 19. e4 {[%emt 0:09:14]} Qc6 {[%emt 0:10:30]} 20. fxe5 {[%emt 0:05:40]} c4 {[%emt 0:00:10]} 21. Bb1 {[%emt 0:03:25]} d3 {[%emt 0:00:17]} 22. Rde1 {[%emt 0:03:12]} Qc5+ {[%emt 0:00:09]} 23. Re3 {[%emt 0:05:11]} Qxe5 {[%emt 0:00:31]} 24. b3 {[%emt 0:01:45]} b5 {[%emt 0:01:09]} 25. bxc4 {[%emt 0:03:19]} bxc4 {[%emt 0:00:13]} 26. a3 {[%emt 0:01:13]} Qc5 {[%emt 0:00:51]} 27. Ba2 {[%emt 0:01:41]} Bxe4 {[%emt 0:02:11]} 28. Rf4 {[%emt 0:04:42]} Bd5 {[%emt 0:00:37]} 29. Rd4 {[%emt 0:01:51]} Be6 {[%emt 0:00:37]} 30. Ree4 {[%emt 0:04:19]} Rad8 {[%emt 0:01:05]} 31. Kh2 {[%emt 0:03:27]} Rxd4 {[%emt 0:01:02]} 32. Rxd4 {[%emt 0:00:44]} Rb8 {[%emt 0:01:25]} 33. Kh1 {[%emt 0:06:17]} h6 {[%emt 0:01:20]} 34. Qf4 {[%emt 0:04:37]} Rb2 {[%emt 0:01:46]} 35. Bxc4 {[%emt 0:03:04]} Rb1+ {[%emt 0:00:34]} 36. Kh2 {[%emt 0:00:54]} Bxc4 {[%emt 0:00:16]} 0-1

[Event "French-ch Youth U12 2022"]
[Site "Agen"]
[Date "2022.04.22"]
[Round "7.6"]
[White "Neel, Laura"]
[Black "Allard Nedellec, Anna"]
[Result "1-0"]
[ECO "A09"]
[WhiteElo "1725"]
[BlackElo "1514"]
[Annotator "NA RC COMBH"]
[PlyCount "24"]
[EventDate "2022.04.17"]
[EventType "swiss"]
[EventCountry "FRA"]
[SourceTitle "playchess.com"]
[Source "ChessBase"]
[SourceQuality "1"]
[TimeControl "5400+30"]

1. Nf3 d5 2. c4 d4 3. b3 c6 4. g3 c5 5. Bg2 Nc6 6. d3 e5 7. Nbd2 h6 8. Ba3 Be6 9. O-O f5 10. e3 Bd6 11. exd4 exd4 12. Qc2 Qd7 1-0